[Event "Icelandic Team-ch Kvika Leagu 2023-24"]
[Site "Reykjavik"]
[Date "2024.03.03"]
[Round "10"]
[White "Fridbertsson, Aegir"]
[Black "Bjornsson, Tomas"]
[Result "0-1"]
[ECO "A75"]
[WhiteElo "2075"]
[BlackElo "2165"]
[Annotator "RC"]
[PlyCount "86"]
[EventDate "2024.02.29"]
[EventType "team-tourn"]
[EventCountry "ISL"]
[SourceTitle "playchess.com"]
[Source "ChessBase"]
[SourceQuality "1"]
[TimeControl "40/5400+30:900+30"]

1. d4 {[%emt 0:00:03]} Nf6 {[%emt 0:00:13]} 2. c4 {[%emt 0:00:09]} c5 {[%emt 0:00:20]} 3. d5 {[%emt 0:00:10]} e6 {[%emt 0:00:19]} 4. Nc3 {[%emt 0:00:08]} exd5 {[%emt 0:00:08]} 5. cxd5 {[%emt 0:00:06]} d6 {[%emt 0:00:12]} 6. e4 {[%emt 0:00:35]} g6 {[%emt 0:00:10]} 7. Nf3 {[%emt 0:00:08]} Bg7 {[%emt 0:00:07]} 8. Be2 {[%emt 0:00:32]} O-O {[%emt 0:00:18]} 9. O-O {[%emt 0:00:09]} a6 {[%emt 0:00:34]} 10. a4 {[%emt 0:01:42]} Bg4 {[%emt 0:01:17]} 11. Nd2 {[%emt 0:04:51]} Bxe2 {[%emt 0:00:19]} 12. Qxe2 {[%emt 0:00:06]} Nbd7 {[%emt 0:02:38]} 13. Nc4 {[%emt 0:02:53]} Nb6 {[%emt 0:05:34]} 14. f3 {[%emt 0:16:19]} Nxc4 {[%emt 0:01:24]} 15. Qxc4 {[%emt 0:00:08]} Nd7 {[%emt 0:03:13]} 16. Bf4 {[%emt 0:02:32]} Ne5 {[%emt 0:01:31]} 17. Qe2 {[%emt 0:00:50]} Rc8 {[%emt 0:02:23]} 18. Kh1 {[%emt 0:02:55]} c4 {[%emt 0:02:46]} 19. Qd2 {[%emt 0:03:37]} Nd3 {[%emt 0:08:49]} 20. Bh6 {[%emt 0:05:34]} Bxh6 {[%emt 0:03:25]} 21. Qxh6 {[%emt 0:00:11]} Qf6 {[%emt 0:11:55]} 22. Qd2 {[%emt 0:01:33]} Rb8 {[%emt 0:05:52]} 23. b3 {[%emt 0:04:39]} Nc5 {[%emt 0:01:16]} 24. Qe3 {[%emt 0:01:36]} Nxb3 {[%emt 0:01:35]} 25. Rad1 {[%emt 0:00:19]} b5 {[%emt 0:01:58]} 26. axb5 {[%emt 0:00:10]} axb5 {[%emt 0:00:06]} 27. f4 {[%emt 0:00:27]} Qe7 {[%emt 0:17:38]} 28. e5 {[%emt 0:10:34]} f5 {[%emt 0:01:25]} 29. Ne2 {[%emt 0:01:59]} b4 {[%emt 0:04:13]} 30. Rb1 {[%emt 0:01:04]} Rfe8 {[%emt 0:04:27]} 31. Nd4 {[%emt 0:05:33]} Nxd4 {[%emt 0:01:54]} 32. Qxd4 {[%emt 0:00:08]} dxe5 {[%emt 0:02:10]} 33. Qxc4 {[%emt 0:00:27]} Qd6 {[%emt 0:02:11]} 34. fxe5 {[%emt 0:00:49]} Rxe5 {[%emt 0:00:44]} 35. Rfd1 {[%emt 0:00:14]} Re4 {[%emt 0:01:31]} 36. Qc2 {[%emt 0:02:21]} Rbe8 {[%emt 0:02:05]} 37. h3 {[%emt 0:01:37]} Kf7 {[%emt 0:04:23]} 38. Qb3 {[%emt 0:03:54]} f4 {[%emt 0:02:13]} 39. Rdc1 {[%emt 0:04:52]} R8e5 {[%emt 0:01:42]} 40. Rd1 {[%emt 0:00:00]} Rg5 {[%emt 0:00:00]} 41. Qd3 {[%emt 0:00:00]} Re3 {[%emt 0:00:00]} 42. Qc4 {[%emt 0:00:00]} f3 {[%emt 0:00:00]} 43. Qh4 Rxg2 {[%emt 0:00:00]} 0-1

[Event "Icelandic Team-ch Kvika Leagu 2023-24"]
[Site "Reykjavik"]
[Date "2024.03.03"]
[Round "10"]
[White "Ptacnikova, Lenka"]
[Black "Einarsson, Arnthor"]
[Result "1-0"]
[ECO "A83"]
[WhiteElo "2067"]
[BlackElo "2179"]
[Annotator "RC"]
[PlyCount "39"]
[EventDate "2024.02.29"]
[EventType "team-tourn"]
[EventCountry "ISL"]
[SourceTitle "playchess.com"]
[Source "ChessBase"]
[SourceQuality "1"]
[TimeControl "40/5400+30:900+30"]

1. d4 {[%emt 0:00:02]} f5 {[%emt 0:00:04]} 2. Nc3 {[%emt 0:00:04]} Nf6 {[%emt 0:00:19]} 3. Bg5 {[%emt 0:00:06]} e6 {[%emt 0:00:50]} 4. e4 {[%emt 0:06:22]} fxe4 {[%emt 0:05:45]} 5. Nxe4 {[%emt 0:01:20]} Be7 {[%emt 0:00:10]} 6. Nxf6+ {[%emt 0:11:36]} Bxf6 {[%emt 0:00:03]} 7. Be3 {[%emt 0:23:02]} c5 {[%emt 0:04:49]} 8. Qh5+ {[%emt 0:00:23]} g6 {[%emt 0:00:18]} 9. Qxc5 {[%emt 0:00:10]} b6 {[%emt 0:00:24]} 10. Qd6 {[%emt 0:03:04]} Nc6 {[%emt 0:02:02]} 11. c3 {[%emt 0:10:28]} Ne7 {[%emt 0:02:50]} 12. Bd3 {[%emt 0:11:38]} Bb7 {[%emt 0:00:23]} 13. Nf3 {[%emt 0:00:43]} O-O {[%emt 0:00:27]} 14. Bb5 {[%emt 0:04:27]} a6 {[%emt 0:05:25]} 15. Bxd7 {[%emt 0:03:02]} Rf7 {[%emt 0:07:04]} 16. Qxe6 {[%emt 0:05:06]} Nf5 {[%emt 0:00:00]} 17. Bc6 {[%emt 0:01:48]} Ng7 {[%emt 0:00:00]} 18. Qe4 {[%emt 0:01:50]} Re7 {[%emt 0:00:00]} 19. Ne5 {[%emt 0:00:18]} Bxc6 {[%emt 0:02:19]} 20. Qxc6 {[%emt 0:00:03]} 1-0